fUST/lending_fUST_20240421
["ID","MTS","AMOUNT","RATE_DAILY","PERIOD"]
[323122537,1713686210278,526.14121076,0.00021,2]
[323122538,1713686211631,673.29235126,0.00021,2]
[323122539,1713686213658,277.86971771,0.00021,2]
[323122540,1713686214331,2586.79174796,0.00021,2]
[323122541,1713686215656,154.84515485,0.00021,2]
[323122542,1713686216757,154.84515485,0.00021,2]
[323122543,1713686217607,150.0,0.00019817,2]
[323122544,1713686219739,354.6718789,0.00021,2]
[323122545,1713686220636,193.52697819,0.00021,2]
[323122546,1713686222868,539.63707301,0.00021,2]
[323122547,1713686224856,150.5,0.0002416,35]
[323122548,1713686224952,171.0,0.0002416,35]
[323122549,1713686227167,171.0,0.0002415,35]
[323122550,1713686227240,150.5,0.0002415,35]
[323122551,1713686227717,150.5,0.0002414,35]
[323122552,1713686227779,171.0,0.0002414,35]
[323122553,1713686230677,474.60169326,0.00021,2]
[323122554,1713686236579,1090.08472256,0.00021,2]
[323122555,1713686238315,3342.94822412,0.00021,2]
[323122556,1713686238530,1086.99270529,0.00021,2]
[323122557,1713686240569,1311.22668928,0.00021,2]
[323122558,1713686241359,883.42675349,0.00021,2]
[323122559,1713686244189,187.20842213,0.00021,2]
[323122560,1713686256191,187.20842213,0.00021,2]
[323122561,1713686257967,2098.69136625,0.00021,2]
[323122562,1713686260323,3341.530844,0.00021,2]
[323122563,1713686264595,468.2653797,0.00021,2]
[323122564,1713686266140,154.84515485,0.00021,2]
[323122565,1713686266169,247.48191632,0.00021,2]
[323122566,1713686266265,154.84515485,0.00021,2]
[323122567,1713686270588,7863.87835467,0.00021,2]
[323122568,1713686270780,154.84515485,0.00021,2]
[323122569,1713686273195,72533.62668599,0.00021,2]
[323122570,1713686273719,247.12439728,0.00021,2]
[323122571,1713686273973,1715.70641608,0.00021,2]
[323122572,1713686277156,1489.75322658,0.00021,2]
[323122573,1713686280191,288.93463903,0.00021,2]
[323122574,1713686280600,468.2653797,0.00021,2]
[323122575,1713686280804,300.0,0.00021,2]
[323122576,1713686282269,238.59705897,0.00021,2]
[323122577,1713686282930,300.0,0.00021,2]
[323122578,1713686283193,154.84515485,0.00021,2]
[323122579,1713686288588,4943.7762086,0.00021,2]
[323122580,1713686290593,210.88771077,0.00021,2]
[323122581,1713686290751,155.25965702,0.00021,2]
[323122582,1713686291198,66141.55748571,0.00021,2]
[323122583,1713686292132,308.38118196,0.00021,2]
[323122584,1713686293693,222.22187997,0.00021,2]
[323122585,1713686295844,204.69981448,0.00021,2]
[323122586,1713686297978,2098.69136625,0.00021,2]
[323122587,1713686303834,1201.14364619,0.00021,2]
[323122588,1713686306130,176.28020598,0.00021,2]
[323122589,1713686306756,59135.86264102,0.00021,2]
[323122590,1713686340610,300.0,0.00021,2]
[323122591,1713686342152,300.0,0.00021,2]
[323122592,1713686354606,205.98680094,0.00021,2]
[323122593,1713686357791,5799.27009605,0.00021,2]
[323122594,1713686359792,204.08167779,0.00021,2]
[323122595,1713686361905,2774.01551629,0.00021,2]
[323122596,1713686375294,1550.19478705,0.00021,2]
[323122598,1713686400704,300.0,0.00021,2]
[323122599,1713686402625,300.0,0.00021,2]
[323122600,1713686412301,711.85123666,0.00020903,2]
[323122601,1713686431349,2586.79174796,0.00021,2]
[323122602,1713686445348,2586.79174796,0.00021,2]
[323122603,1713686447772,59135.86264102,0.00021,2]
[323122604,1713686448342,161.94443373,0.000205,2]
[323122605,1713686460676,300.0,0.00021,2]
[323122606,1713686461778,23407.86545637,0.00021,2]
[323122607,1713686461812,300.0,0.00021,2]
[323122608,1713686463049,2000.0,0.00020905,2]
[323122610,1713686497527,580.57529986,0.00020994,2]
[323122611,1713686518853,150.0,0.00019816,2]
[323122612,1713686520743,300.0,0.00021,2]
[323122613,1713686522672,300.0,0.00021,2]
[323122615,1713686580591,300.0,0.00021,2]
[323122616,1713686583996,300.0,0.00021,2]
[323122617,1713686602828,2000.0,0.00020906,2]
[323122618,1713686640625,300.0,0.00021,2]
[323122619,1713686642234,300.0,0.00021,2]
[323122623,1713686700574,300.0,0.00021,2]
[323122624,1713686701811,300.0,0.00021,2]
[323122626,1713686718979,2000.0,0.00020906,2]
[323122629,1713686760685,300.0,0.00021,2]
[323122630,1713686763267,300.0,0.00021,2]
[323122633,1713686796741,705.40305203,0.00021,2]
[323122636,1713686820560,300.0,0.00021,2]
[323122637,1713686822555,300.0,0.00021,2]
[323122638,1713686827482,623.53234901,0.00021,2]
[323122639,1713686835939,569.48098936,0.00020907,2]
[323122642,1713686865864,738.33711258,0.00020906,2]
[323122644,1713686880561,300.0,0.00021,2]
[323122645,1713686883817,300.0,0.00021,2]
[323122647,1713686895454,945.3065842,0.00020006,2]
[323122652,1713686940886,300.0,0.00021,2]
[323122653,1713686943659,300.0,0.00021,2]
[323122654,1713686954162,4758.6505462,0.00020006,2]
[323122662,1713687000756,300.0,0.00021,2]
[323122663,1713687003504,300.0,0.00021,2]
[323122708,1713687032591,-154.84515485,0.00021001,2]
[323122710,1713687032601,-1442.22865105,0.00021001,2]
[323122712,1713687032610,-157.93707583,0.00021001,2]
[323122714,1713687032620,-526.14121076,0.00021001,2]
[323122716,1713687032629,-203.98285068,0.00021001,2]
[323122718,1713687032641,-448.6814962,0.00021001,2]
[323122720,1713687032650,-335.41351025,0.00021001,2]
[323122722,1713687032660,-241.42272,0.00021001,2]
[323122724,1713687032670,-250.25553816,0.00021001,2]
[323122726,1713687032679,-166.72301173,0.00021001,2]
[323122728,1713687032688,-224.37167667,0.00021001,2]
[323122730,1713687032697,-4.12523891,0.00021001,2]
[323122733,1713687032708,-535.5118341,0.00021001,2]
[323122735,1713687032717,-474.60169326,0.00021001,2]
[323122737,1713687032726,-274.41587494,0.00021001,2]
[323122739,1713687032737,-815.66884762,0.00021001,2]
[323122741,1713687032746,-1311.22668928,0.00021001,2]
[323122743,1713687032756,-883.42675349,0.00021001,2]
[323122745,1713687032769,-154.84515485,0.00021002,2]
[323122747,1713687032778,-243.53028026,0.00021003,2]
[323122749,1713687032787,-460.66889145,0.00021003,2]
[323122751,1713687032796,-207.23945787,0.00021003,2]
[323122753,1713687032807,-1068.46676135,0.00021003,2]
[323122815,1713687038417,-1705.54875494,0.00021003,2]
[323122816,1713687038427,-227.38124506,0.00021003,2]
[323122817,1713687038472,-1322.81354199,0.00021003,2]
[323122818,1713687038482,-10235.92550958,0.00021004,2]
[323122819,1713687038492,-156.84586358,0.00021004,2]
[323122820,1713687038501,-170.54852013,0.00021004,2]
[323122821,1713687038511,-1201.72825929,0.00021004,2]
[323122822,1713687038520,-1087.28742838,0.00021004,2]
[323122823,1713687038530,-155.37410342,0.00021004,2]
[323122825,1713687038542,-272.47345857,0.00021004,2]
[323122827,1713687038551,-409.63953939,0.00021004,2]
[323122828,1713687038560,-259.4890615,0.00021004,2]
[323122830,1713687038569,-156.08493432,0.00021004,2]
[323122831,1713687038579,-164.57788955,0.00021005,2]
[323122833,1713687038589,-2082.89769034,0.00021005,2]
[323122834,1713687038599,-468.11537786,0.00021005,2]
[323122835,1713687038608,-249.84828162,0.00021005,2]
[323122836,1713687038622,-69000.72175807,0.00021006,2]
[323122837,1713687038660,-227.03385285,0.00021007,2]
[323122838,1713687038671,-953.95469857,0.00021007,2]
[323122839,1713687038682,-1012.78245529,0.00021007,2]
[323122840,1713687038692,-154.8961369,0.00021007,2]
[323122841,1713687038702,-283.1526087,0.00021007,2]
[323122842,1713687038711,-241.30671673,0.00021007,2]
[323122843,1713687038721,-440.09151511,0.00021007,2]
[323122844,1713687038730,-211.41674407,0.00021007,2]
[323122845,1713687038741,-291.4940424,0.00021007,2]
[323122846,1713687038752,-156.79191198,0.00021007,2]
[323122847,1713687038764,-318.35228983,0.00021007,2]
[323122848,1713687038775,-602.61216035,0.00021007,2]
[323122849,1713687038785,-203.42050511,0.00021007,2]
[323122850,1713687038796,-155.06222629,0.00021007,2]
[323122851,1713687038806,-167.47944015,0.00021007,2]
[323122852,1713687038815,-688.27982774,0.00021007,2]
[323122853,1713687038824,-191.61537632,0.00021007,2]
[323122854,1713687038834,-362.4137179,0.00021007,2]
[323122855,1713687038844,-190.20010034,0.00021007,2]
[323122856,1713687038856,-250.18519589,0.00021007,2]
[323122857,1713687038866,-155.05694294,0.00021007,2]
[323122858,1713687038876,-210.00990646,0.00021007,2]
[323122859,1713687038887,-304.93752392,0.00021007,2]
[323122860,1713687038896,-157.51511733,0.00021007,2]
[323122861,1713687038906,-205.02360207,0.00021007,2]
[323122862,1713687038917,-1672.08372803,0.00021007,2]
[323122863,1713687038928,-154.84515485,0.00021007,2]
[323122864,1713687038938,-155.0025218,0.00021007,2]
[323122865,1713687038948,-294.56448111,0.00021007,2]
[323122866,1713687038959,-154.99603486,0.00021007,2]
[323122867,1713687038969,-305.00878781,0.00021007,2]
[323122868,1713687038979,-390.64627353,0.00021011,2]
[323122869,1713687038990,-569.48098932,0.00021135,2]
[323122870,1713687039000,-569.48098932,0.00021362,2]
[323122871,1713687039011,-569.48098932,0.0002159,2]
[323122872,1713687039022,-178.37206691,0.000217,2]
[323122873,1713687039033,-569.48098932,0.00021817,2]
[323122874,1713687039045,-1735.21598946,0.000219,3]
[323122875,1713687039055,-164.23753272,0.00021915,2]
[323122876,1713687039065,-808.01963008,0.00021915,2]
[323122877,1713687039076,-154.99260465,0.00021915,2]
[323122878,1713687039087,-653.4242106,0.00021915,2]
[323122879,1713687039098,-154.86062544,0.00021915,2]
[323122880,1713687039107,-1404.97231966,0.00021916,2]
[323122881,1713687039118,-500.0,0.00021917,2]
[323122882,1713687039128,-500.0,0.00021917,2]
[323122883,1713687039139,-310.36254952,0.00021917,2]
[323122884,1713687039148,-506.83620296,0.00021917,2]
[323122885,1713687039158,-500.0,0.00021917,2]
[323122886,1713687039167,-502.45406462,0.00021917,2]
[323122887,1713687039178,-193.48740822,0.00021917,2]
[323122888,1713687039189,-704.32,0.00021917,2]
[323122889,1713687039199,-500.0,0.00021917,2]
[323122890,1713687039210,-500.0,0.00021917,2]
[323122891,1713687039222,-506.03468195,0.00021917,2]
[323122892,1713687039232,-500.0,0.00021917,2]
[323122893,1713687039246,-500.0,0.00021917,2]
[323122894,1713687039257,-500.0,0.00021917,2]
[323122895,1713687039267,-500.0,0.00021917,2]
[323122896,1713687039277,-500.0,0.00021917,2]
[323122897,1713687039288,-500.0,0.00021917,2]
[323122898,1713687039298,-500.0,0.00021917,2]
[323122899,1713687039308,-500.0,0.00021917,2]
[323122900,1713687039317,-500.0,0.00021917,2]
[323122901,1713687039327,-541.17,0.00021917,2]
[323122902,1713687039338,-480.54300946,0.00021917,2]
[323122903,1713687039348,-500.0,0.00021917,2]
[323122904,1713687039359,-500.0,0.00021917,2]
[323122905,1713687039370,-502.76922335,0.00021917,2]
[323122906,1713687039380,-500.0,0.00021917,2]
[323122907,1713687039390,-500.0,0.00021917,2]
[323122908,1713687039401,-500.0,0.00021917,2]
[323122909,1713687039411,-500.0,0.00021917,2]
[323122910,1713687039421,-500.0,0.00021917,2]
[323122911,1713687039431,-500.0,0.00021917,2]
[323122912,1713687039442,-500.0,0.00021917,2]
[323122913,1713687039455,-500.0,0.00021917,2]
[323122914,1713687039466,-500.0,0.00021917,2]
[323122915,1713687039476,-500.0,0.00021917,2]
[323122916,1713687039487,-500.0,0.00021917,2]
[323122917,1713687039497,-500.0,0.00021917,2]
[323122918,1713687039508,-500.0,0.00021917,2]
[323122919,1713687039518,-500.0,0.00021917,2]
[323122920,1713687039530,-500.0,0.00021917,2]
[323122921,1713687039542,-503.54699233,0.00021917,2]
[323122922,1713687039553,-434.94487351,0.00021917,2]
[323122923,1713687039563,-499.09298378,0.00021917,2]
[323122924,1713687039573,-500.0,0.00021917,2]
[323122925,1713687039583,-541.60503942,0.00021917,2]
[323122926,1713687039592,-504.9291087,0.00021917,2]
[323122927,1713687039601,-500.0,0.00021917,2]
[323122928,1713687039611,-500.0,0.00021917,2]
[323122929,1713687039620,-375.23419875,0.00021917,2]
[323122930,1713687039630,-500.0,0.00021917,2]
[323122931,1713687039641,-500.0,0.00021917,2]
[323122932,1713687039649,-790.55,0.00021917,2]
[323122933,1713687039659,-507.06788222,0.00021917,2]
[323122934,1713687039668,-504.8923807,0.00021917,2]
[323122935,1713687039677,-500.0,0.00021917,2]
[323122936,1713687039687,-500.0,0.00021917,2]
[323122937,1713687039697,-500.0,0.00021917,2]
[323122938,1713687039707,-500.0,0.00021917,2]
[323122939,1713687039717,-500.0,0.00021917,2]
[323122940,1713687039727,-500.0,0.00021917,2]
[323122941,1713687039736,-500.0,0.00021917,2]
[323122942,1713687039745,-500.0,0.00021917,2]
[323122943,1713687039755,-500.0,0.00021917,2]
[323122944,1713687039768,-500.0,0.00021917,2]
[323122945,1713687039778,-500.0,0.00021917,2]
[323122946,1713687039788,-500.0,0.00021917,2]
[323122947,1713687039797,-500.0,0.00021917,2]
[323122948,1713687039807,-500.0,0.00021917,2]
[323122950,1713687039816,-500.0,0.00021917,2]
[323122952,1713687039826,-529.34504125,0.00021917,2]
[323122954,1713687039836,-500.0,0.00021917,2]
[323122956,1713687039845,-500.0,0.00021917,2]
[323122958,1713687039855,-500.0,0.00021917,2]
[323122960,1713687039864,-500.0,0.00021917,2]
[323122962,1713687039874,-500.0,0.00021917,2]
[323122963,1713687039883,-463.76403182,0.00021917,2]
[323122965,1713687039892,-500.0,0.00021917,2]
[323122966,1713687039901,-500.0,0.00021917,2]
[323122967,1713687039910,-276.94721428,0.00021917,2]
[323122968,1713687039920,-500.0,0.00021917,2]
[323122970,1713687039930,-877.33,0.00021917,2]
[323122971,1713687039940,-500.0,0.00021917,2]
[323122972,1713687039951,-500.0,0.00021917,2]
[323122973,1713687039960,-500.0,0.00021917,2]
[323122974,1713687039969,-514.06974423,0.00021917,2]
[323122975,1713687039978,-500.0,0.00021917,2]
[323122976,1713687039987,-500.0,0.00021917,2]
[323122977,1713687039998,-500.0,0.00021917,2]
[323122978,1713687040007,-500.0,0.00021917,2]
[323122979,1713687040016,-500.0,0.00021917,2]
[323122980,1713687040026,-500.0,0.00021917,2]
[323122981,1713687040036,-500.0,0.00021917,2]
[323122982,1713687040045,-1067.9,0.00021917,2]
[323122983,1713687040055,-500.0,0.00021917,2]
[323122984,1713687040064,-500.0,0.00021917,2]
[323122985,1713687040074,-500.0,0.00021917,2]
[323122987,1713687040083,-651.52,0.00021917,2]
[323122988,1713687040092,-500.0,0.00021917,2]
[323122989,1713687040102,-611.32207376,0.00021917,2]
[323122990,1713687040111,-500.0,0.00021917,2]
[323122991,1713687040120,-502.49703619,0.00021917,2]
[323122992,1713687040136,-173.042897,0.00021917,2]
[323122994,1713687040145,-500.0,0.00021917,2]
[323122995,1713687040154,-500.0,0.00021917,2]
[323122996,1713687040163,-500.0,0.00021917,2]
[323122997,1713687040173,-500.0,0.00021917,2]
[323122998,1713687040182,-500.0,0.00021917,2]
[323122999,1713687040191,-506.03749183,0.00021917,2]
[323123000,1713687040200,-500.0,0.00021917,2]
[323123001,1713687040210,-523.14733416,0.00021917,2]
[323123002,1713687040219,-607.86677738,0.00021917,2]
[323123003,1713687040227,-500.0,0.00021917,2]
[323123004,1713687040236,-500.0,0.00021917,2]
[323123006,1713687040246,-500.0,0.00021917,2]
[323123007,1713687040255,-500.0,0.00021917,2]
[323123009,1713687040264,-500.0,0.00021917,2]
[323123011,1713687040273,-200.87227786,0.00021917,2]
[323123013,1713687040282,-500.0,0.00021917,2]
[323123014,1713687040295,-500.0,0.00021917,2]
[323123016,1713687040304,-500.0,0.00021917,2]
[323123017,1713687040314,-799.72,0.00021917,2]
[323123019,1713687040323,-500.0,0.00021917,2]
[323123021,1713687040333,-500.0,0.00021917,2]
[323123022,1713687040342,-500.0,0.00021917,2]
[323123023,1713687040352,-500.0,0.00021917,2]
[323123025,1713687040361,-500.0,0.00021917,2]
[323123026,1713687040371,-500.0,0.00021917,2]
[323123027,1713687040381,-509.50733343,0.00021917,2]
[323123028,1713687040390,-500.0,0.00021917,2]
[323123029,1713687040399,-500.0,0.00021917,2]
[323123030,1713687040408,-500.0,0.00021917,2]
[323123031,1713687040418,-500.0,0.00021917,2]
[323123032,1713687040427,-500.0,0.00021917,2]
[323123033,1713687040435,-500.0,0.00021917,2]
[323123034,1713687040444,-503.99016589,0.00021917,2]
[323123035,1713687040453,-500.0,0.00021917,2]
[323123036,1713687040462,-500.0,0.00021917,2]
[323123037,1713687040471,-500.0,0.00021917,2]
[323123038,1713687040483,-504.34163219,0.00021917,2]
[323123039,1713687040493,-500.0,0.00021917,2]
[323123040,1713687040502,-500.0,0.00021917,2]
[323123041,1713687040512,-500.0,0.00021917,2]
[323123042,1713687040522,-625.52492769,0.00021917,2]
[323123043,1713687040531,-503.76164233,0.00021917,2]
[323123044,1713687040541,-151.0,0.00021917,2]
[323123045,1713687040551,-151.0,0.00021917,2]
[323123046,1713687040560,-500.0,0.00021917,2]
[323123047,1713687040570,-566.62760746,0.00021917,2]
[323123048,1713687040580,-500.0,0.00021917,2]
[323123049,1713687040589,-500.0,0.00021917,2]
[323123050,1713687040598,-500.0,0.00021917,2]
[323123051,1713687040608,-500.0,0.00021917,2]
[323123052,1713687040618,-500.0,0.00021917,2]
[323123053,1713687040627,-500.0,0.00021917,2]
[323123054,1713687040636,-504.32441262,0.00021917,2]
[323123055,1713687040646,-500.0,0.00021917,2]
[323123056,1713687040655,-504.22410649,0.00021917,2]
[323123057,1713687040665,-500.0,0.00021917,2]
[323123059,1713687040676,-500.0,0.00021917,2]
[323123060,1713687040686,-515.38583008,0.00021917,2]
[323123062,1713687040696,-500.0,0.00021917,2]
[323123063,1713687040706,-500.0,0.00021917,2]
[323123065,1713687040716,-500.0,0.00021917,2]
[323123067,1713687040726,-500.0,0.00021917,2]
[323123068,1713687040737,-500.0,0.00021917,2]
[323123069,1713687040746,-500.0,0.00021917,2]
[323123073,1713687040859,-500.0,0.00021917,2]
[323123074,1713687040870,-500.0,0.00021917,2]
[323123075,1713687040880,-500.0,0.00021917,2]
[323123076,1713687040889,-500.0,0.00021917,2]
[323123077,1713687040899,-500.0,0.00021917,2]
[323123078,1713687040910,-500.0,0.00021917,2]
[323123079,1713687040919,-500.0,0.00021917,2]
[323123080,1713687040931,-509.58949801,0.00021917,2]
[323123081,1713687040940,-500.0,0.00021917,2]
[323123082,1713687040950,-500.0,0.00021917,2]
[323123083,1713687040959,-513.06151119,0.00021917,2]
[323123084,1713687040970,-500.0,0.00021917,2]
[323123085,1713687040980,-798.23,0.00021917,2]
[323123086,1713687040990,-500.0,0.00021917,2]
[323123087,1713687041000,-500.0,0.00021917,2]
[323123088,1713687041010,-500.0,0.00021917,2]
[323123089,1713687041020,-502.94250085,0.00021917,2]
[323123090,1713687041029,-507.17171376,0.00021917,2]
[323123091,1713687041041,-501.68120795,0.00021917,2]
[323123092,1713687041051,-500.0,0.00021917,2]
[323123093,1713687041061,-500.72460198,0.00021917,2]
[323123094,1713687041071,-709.21,0.00021917,2]
[323123095,1713687041082,-500.0,0.00021917,2]
[323123096,1713687041091,-500.0,0.00021917,2]
[323123097,1713687041101,-527.01,0.00021917,2]
[323123098,1713687041111,-785.34,0.00021917,2]
[323123099,1713687041120,-500.0,0.00021917,2]
[323123100,1713687041130,-500.0,0.00021917,2]
[323123101,1713687041140,-500.0,0.00021917,2]
[323123102,1713687041150,-500.0,0.00021917,2]
[323123103,1713687041160,-500.0,0.00021917,2]
[323123104,1713687041170,-507.19889557,0.00021917,2]
[323123105,1713687041179,-500.0,0.00021917,2]
[323123106,1713687041189,-507.0549992,0.00021917,2]
[323123107,1713687041199,-500.0,0.00021917,2]
[323123108,1713687041208,-439.43905108,0.00021917,2]
[323123109,1713687041217,-500.0,0.00021917,2]
[323123110,1713687041227,-204.536091,0.00021917,2]
[323123111,1713687041237,-500.0,0.00021917,2]
[323123112,1713687041246,-500.0,0.00021917,2]
[323123113,1713687041255,-500.0,0.00021917,2]
[323123114,1713687041265,-500.0,0.00021917,2]
[323123115,1713687041274,-500.0,0.00021917,2]
[323123116,1713687041284,-500.0,0.00021917,2]
[323123117,1713687041303,-500.0,0.00021917,2]
[323123118,1713687041312,-500.0,0.00021917,2]
[323123119,1713687041321,-500.0,0.00021917,2]
[323123120,1713687041331,-500.0,0.00021917,2]
[323123121,1713687041342,-500.0,0.00021917,2]
[323123122,1713687041350,-500.0,0.00021917,2]
[323123123,1713687041359,-500.0,0.00021917,2]
[323123124,1713687041368,-500.0,0.00021917,2]
[323123125,1713687041377,-500.0,0.00021917,2]
[323123126,1713687041386,-500.0,0.00021917,2]
[323123127,1713687041395,-770.17,0.00021917,2]
[323123128,1713687041403,-719.82,0.00021917,2]
[323123129,1713687041413,-500.0,0.00021917,2]
[323123130,1713687041422,-151.0,0.00021917,2]
[323123131,1713687041431,-500.0,0.00021917,2]
[323123132,1713687041440,-1014.13242916,0.00021917,2]
[323123133,1713687041449,-500.0,0.00021917,2]
[323123134,1713687041459,-392.66360085,0.00021917,2]
[323123135,1713687041469,-507.42751047,0.00021917,2]
[323123136,1713687041479,-500.0,0.00021917,2]
[323123137,1713687041488,-500.0,0.00021917,2]
[323123138,1713687041498,-500.0,0.00021917,2]
[323123139,1713687041508,-500.0,0.00021917,2]
[323123140,1713687041518,-500.0,0.00021917,2]
[323123141,1713687041529,-500.0,0.00021917,2]
[323123142,1713687041544,-500.0,0.00021917,2]
[323123143,1713687041553,-500.0,0.00021917,2]
[323123144,1713687041563,-500.0,0.00021917,2]
[323123145,1713687041574,-500.0,0.00021917,2]
[323123146,1713687041584,-500.0,0.00021917,2]
[323123147,1713687041594,-511.42419852,0.00021917,2]
[323123148,1713687041605,-500.0,0.00021917,2]
[323123149,1713687041615,-500.0,0.00021917,2]
[323123150,1713687041624,-504.78183559,0.00021917,2]
[323123151,1713687041635,-500.0,0.00021917,2]
[323123152,1713687041646,-500.0,0.00021917,2]
[323123153,1713687041656,-500.0,0.00021917,2]
[323123154,1713687041667,-500.0,0.00021917,2]
[323123155,1713687041677,-385.08909183,0.00021917,2]
[323123156,1713687041686,-500.0,0.00021917,2]
[323123157,1713687041695,-500.0,0.00021917,2]
[323123158,1713687041705,-588.97,0.00021917,2]
[323123159,1713687041714,-548.1038326,0.00021917,2]
[323123160,1713687041723,-1109.58,0.00021917,2]
[323123161,1713687041732,-500.0,0.00021917,2]
[323123162,1713687041742,-151.0,0.00021917,2]
[323123163,1713687041753,-151.0,0.00021917,2]
[323123164,1713687041763,-500.0,0.00021917,2]
[323123165,1713687041774,-263.54767,0.00021917,2]
[323123166,1713687041784,-500.0,0.00021917,2]
[323123167,1713687041798,-507.69375502,0.00021917,2]
[323123168,1713687041807,-500.0,0.00021917,2]
[323123169,1713687041816,-500.0,0.00021917,2]
[323123170,1713687041825,-500.0,0.00021917,2]
[323123171,1713687041834,-500.0,0.00021917,2]
[323123172,1713687041845,-509.53852118,0.00021917,2]
[323123173,1713687041860,-2011.82,0.00021917,2]
[323123174,1713687041870,-500.0,0.00021917,2]
[323123175,1713687041881,-500.0,0.00021917,2]
[323123176,1713687041891,-500.0,0.00021917,2]
[323123177,1713687041901,-500.0,0.00021917,2]
[323123178,1713687041912,-500.0,0.00021917,2]
[323123179,1713687041923,-500.0,0.00021917,2]
[323123180,1713687041934,-500.0,0.00021917,2]
[323123181,1713687041943,-500.0,0.00021917,2]
[323123182,1713687041953,-500.0,0.00021917,2]
[323123183,1713687041963,-500.0,0.00021917,2]
[323123184,1713687041977,-896.01,0.00021917,2]
[323123185,1713687041987,-500.0,0.00021917,2]
[323123186,1713687041996,-510.27205363,0.00021917,2]
[323123187,1713687042007,-500.0,0.00021917,2]
[323123188,1713687042018,-508.02911983,0.00021917,2]
[323123189,1713687042028,-502.41307117,0.00021917,2]
[323123190,1713687042037,-314.20127531,0.00021917,2]
[323123191,1713687042049,-500.0,0.00021917,2]
[323123192,1713687042059,-500.0,0.00021917,2]
[323123193,1713687042070,-500.0,0.00021917,2]
[323123194,1713687042079,-500.0,0.00021917,2]
[323123195,1713687042089,-624.95533883,0.00021917,2]
[323123196,1713687042100,-500.0,0.00021917,2]
[323123197,1713687042110,-500.0,0.00021917,2]
[323123198,1713687042120,-618.03,0.00021917,2]
[323123199,1713687042131,-526.03,0.00021917,2]
[323123200,1713687042142,-500.0,0.00021917,2]
[323123201,1713687042152,-500.0,0.00021917,2]
[323123202,1713687042162,-500.0,0.00021917,2]
[323123203,1713687042173,-500.0,0.00021917,2]
[323123204,1713687042184,-500.0,0.00021917,2]
[323123205,1713687042193,-502.6067113,0.00021917,2]
[323123206,1713687042210,-506.64861878,0.00021917,2]
[323123207,1713687042221,-500.0,0.00021917,2]
[323123208,1713687042231,-500.0,0.00021917,2]
[323123209,1713687042240,-500.0,0.00021917,2]
[323123210,1713687042250,-717.56,0.00021917,2]
[323123211,1713687042260,-500.0,0.00021917,2]
[323123212,1713687042270,-500.0,0.00021917,2]
[323123213,1713687042281,-935.43,0.00021917,2]
[323123214,1713687042292,-500.0,0.00021917,2]
[323123215,1713687042301,-500.0,0.00021917,2]
[323123216,1713687042311,-513.72407907,0.00021917,2]
[323123217,1713687042322,-500.0,0.00021917,2]
[323123218,1713687042331,-500.0,0.00021917,2]
[323123219,1713687042340,-500.0,0.00021917,2]
[323123220,1713687042349,-500.0,0.00021917,2]
[323123221,1713687042358,-500.0,0.00021917,2]
[323123222,1713687042367,-500.0,0.00021917,2]